fUSD/lending_fUSD_20250219
["ID","MTS","AMOUNT","RATE_DAILY","PERIOD"]
[353685170,1739989838468,-500.0,0.00011038,2]
[353685172,1739989838478,-500.0,0.00011038,2]
[353685174,1739989838487,-500.0,0.00011038,2]
[353685176,1739989838496,-500.0,0.00011038,2]
[353685178,1739989838506,-825.72,0.00011038,2]
[353685180,1739989838515,-561.62,0.00011038,2]
[353685182,1739989838524,-655.06,0.00011038,2]
[353685184,1739989838533,-969.05,0.00011038,2]
[353685186,1739989838543,-1182.78,0.00011038,2]
[353685188,1739989838553,-500.0,0.00011038,2]
[353685190,1739989838562,-638.44,0.00011038,2]
[353685192,1739989838571,-731.18,0.00011038,2]
[353685194,1739989838581,-616.66,0.00011038,2]
[353685197,1739989838591,-155.060569,0.00011038,2]
[353685198,1739989838601,-500.0,0.00011038,2]
[353685201,1739989838611,-820.16,0.00011038,2]
[353685203,1739989838620,-1091.98,0.00011038,2]
[353685205,1739989838630,-500.0,0.00011038,2]
[353685206,1739989838639,-175.956254,0.00011038,2]
[353685209,1739989838649,-965.92,0.00011038,2]
[353685211,1739989838658,-500.0,0.00011038,2]
[353685213,1739989838667,-500.84408562,0.00011038,2]
[353685214,1739989838676,-833.44,0.00011038,2]
[353685217,1739989838686,-1080.06,0.00011038,2]
[353685219,1739989838695,-500.0,0.00011038,2]
[353685220,1739989838704,-610.68,0.00011038,2]
[353685223,1739989838714,-500.0,0.00011038,2]
[353685225,1739989838723,-728.39,0.00011038,2]
[353685226,1739989838733,-713.27,0.00011038,2]
[353685229,1739989838742,-1017.85,0.00011038,2]
[353685230,1739989838752,-500.0,0.00011038,2]
[353685232,1739989838761,-812.74,0.00011038,2]
[353685235,1739989838771,-515.0718437,0.00011038,2]
[353685237,1739989838781,-500.0,0.00011038,2]
[353685239,1739989838791,-523.21,0.00011038,2]
[353685241,1739989838800,-500.0,0.00011038,2]
[353685243,1739989838810,-484.66452587,0.00011038,2]
[353685244,1739989838820,-607.4,0.00011038,2]
[353685246,1739989838830,-583.25,0.00011038,2]
[353685249,1739989838840,-778.67,0.00011038,2]
[353685250,1739989838849,-500.0,0.00011038,2]
[353685252,1739989838859,-500.0,0.00011038,2]
[353685255,1739989838868,-500.0,0.00011038,2]
[353685257,1739989838878,-659.69,0.00011038,2]
[353685258,1739989838887,-554.47,0.00011038,2]
[353685260,1739989838897,-500.0,0.00011038,2]
[353685263,1739989838907,-500.0,0.00011038,2]
[353685265,1739989838917,-1330.3,0.00011038,2]
[353685267,1739989838927,-500.0,0.00011038,2]
[353685269,1739989838936,-500.0,0.00011038,2]
[353685271,1739989838946,-500.0,0.00011038,2]
[353685273,1739989838955,-500.0,0.00011038,2]
[353685275,1739989838965,-1604.92,0.00011038,2]
[353685277,1739989838974,-838.32,0.00011038,2]
[353685279,1739989838984,-876.1,0.00011038,2]
[353685281,1739989838993,-500.0,0.00011038,2]
[353685283,1739989839003,-500.0,0.00011038,2]
[353685285,1739989839013,-1751.32,0.00011038,2]
[353685287,1739989839023,-500.0,0.00011038,2]
[353685289,1739989839032,-639.18,0.00011038,2]
[353685291,1739989839042,-653.29,0.00011038,2]
[353685293,1739989839055,-500.0,0.00011038,2]
[353685295,1739989839067,-522.83,0.00011038,2]
[353685297,1739989839076,-155.060567,0.00011038,2]
[353685299,1739989839086,-1376.25,0.00011038,2]
[353685301,1739989839096,-551.72,0.00011038,2]
[353685303,1739989839105,-500.0,0.00011038,2]
[353685305,1739989839117,-640.55,0.00011038,2]
[353685307,1739989839126,-1241.36,0.00011038,2]
[353685308,1739989839136,-557.53,0.00011038,2]
[353685310,1739989839146,-170.031778,0.00011038,2]
[353685313,1739989839155,-555.97,0.00011038,2]
[353685314,1739989839165,-500.0,0.00011038,2]
[353685316,1739989839174,-869.29,0.00011038,2]
[353685318,1739989839184,-500.0,0.00011038,2]
[353685320,1739989839193,-500.0,0.00011038,2]
[353685322,1739989839203,-679.37,0.00011038,2]
[353685324,1739989839213,-942.71,0.00011038,2]
[353685326,1739989839222,-500.0,0.00011038,2]
[353685328,1739989839231,-942.13,0.00011038,2]
[353685330,1739989839241,-1397.07,0.00011038,2]
[353685332,1739989839251,-1259.79,0.00011038,2]
[353685334,1739989839260,-599.17,0.00011038,2]
[353685336,1739989839270,-875.78,0.00011038,2]
[353685338,1739989839279,-500.0,0.00011038,2]
[353685340,1739989839289,-817.96,0.00011038,2]
[353685342,1739989839298,-1182.74,0.00011038,2]
[353685344,1739989839308,-500.0,0.00011038,2]
[353685346,1739989839318,-500.0,0.00011038,2]
[353685348,1739989839329,-914.83,0.00011038,2]
[353685351,1739989839339,-500.0,0.00011038,2]
[353685352,1739989839348,-695.4,0.00011038,2]
[353685355,1739989839359,-749.11,0.00011038,2]
[353685357,1739989839369,-1038.42,0.00011038,2]
[353685359,1739989839378,-753.3,0.00011038,2]
[353685361,1739989839388,-1734.46,0.00011038,2]
[353685363,1739989839398,-500.0,0.00011038,2]
[353685365,1739989839408,-664.48,0.00011038,2]
[353685367,1739989839418,-726.41,0.00011038,2]
[353685369,1739989839427,-1231.72,0.00011038,2]
[353685371,1739989839437,-1018.7,0.00011038,2]
[353685373,1739989839446,-500.0,0.00011038,2]
[353685375,1739989839456,-769.87,0.00011038,2]
[353685377,1739989839466,-873.89,0.00011038,2]
[353685379,1739989839475,-818.47,0.00011038,2]
[353685381,1739989839484,-500.0,0.00011038,2]
[353685383,1739989839493,-500.0,0.00011038,2]
[353685385,1739989839503,-500.0,0.00011038,2]
[353685387,1739989839512,-500.0,0.00011038,2]
[353685389,1739989839522,-573.96,0.00011038,2]
[353685391,1739989839531,-1309.75,0.00011038,2]
[353685393,1739989839540,-500.0,0.00011038,2]
[353685395,1739989839549,-500.0,0.00011038,2]
[353685397,1739989839558,-975.41,0.00011038,2]
[353685398,1739989839567,-1058.01,0.00011038,2]
[353685401,1739989839577,-501.58,0.00011038,2]
[353685403,1739989839587,-500.0,0.00011038,2]
[353685404,1739989839596,-954.76,0.00011038,2]
[353685407,1739989839605,-500.0,0.00011038,2]
[353685409,1739989839617,-500.0,0.00011038,2]
[353685410,1739989839626,-1536.01,0.00011038,2]
[353685413,1739989839636,-500.0,0.00011038,2]
[353685414,1739989839646,-892.25,0.00011038,2]
[353685416,1739989839656,-500.0,0.00011038,2]
[353685418,1739989839665,-915.51,0.00011038,2]
[353685420,1739989839674,-500.0,0.00011038,2]
[353685422,1739989839684,-500.0,0.00011038,2]
[353685424,1739989839694,-994.04,0.00011038,2]
[353685427,1739989839704,-775.03,0.00011038,2]
[353685428,1739989839714,-500.0,0.00011038,2]
[353685431,1739989839725,-1416.98,0.00011038,2]
[353685433,1739989839734,-649.43,0.00011038,2]
[353685435,1739989839743,-1202.88,0.00011038,2]
[353685436,1739989839753,-1327.99,0.00011038,2]
[353685439,1739989839762,-500.0,0.00011038,2]
[353685440,1739989839773,-995.37,0.00011038,2]
[353685443,1739989839783,-500.0,0.00011038,2]
[353685444,1739989839793,-2799.6,0.00011038,2]
[353685446,1739989839803,-155.060566,0.00011038,2]
[353685448,1739989839812,-500.0,0.00011038,2]
[353685451,1739989839822,-553.99,0.00011038,2]
[353685453,1739989839832,-1388.91,0.00011038,2]
[353685455,1739989839842,-500.0,0.00011038,2]
[353685457,1739989839852,-500.0,0.00011038,2]
[353685459,1739989839863,-500.0,0.00011038,2]
[353685460,1739989839873,-1104.25,0.00011038,2]
[353685462,1739989839882,-500.0,0.00011038,2]
[353685464,1739989839891,-824.81,0.00011038,2]
[353685466,1739989839901,-500.0,0.00011038,2]
[353685468,1739989839911,-500.0,0.00011038,2]
[353685470,1739989839920,-738.94,0.00011038,2]
[353685472,1739989839929,-1131.14,0.00011038,2]
[353685474,1739989839939,-821.38,0.00011038,2]
[353685476,1739989839949,-500.0,0.00011038,2]
[353685478,1739989839958,-604.82,0.00011038,2]
[353685480,1739989839967,-175.956253,0.00011038,2]
[353685482,1739989839977,-1287.39,0.00011038,2]
[353685484,1739989839987,-1445.78,0.00011038,2]
[353685486,1739989839996,-752.18,0.00011038,2]
[353685488,1739989840005,-960.96,0.00011038,2]
[353685490,1739989840015,-1244.57,0.00011038,2]
[353685492,1739989840025,-500.0,0.00011038,2]
[353685494,1739989840035,-1005.26,0.00011038,2]
[353685496,1739989840045,-500.0,0.00011038,2]
[353685498,1739989840058,-856.67,0.00011038,2]
[353685500,1739989840069,-841.23,0.00011038,2]
[353685502,1739989840079,-1428.21,0.00011038,2]
[353685504,1739989840088,-1395.26,0.00011038,2]
[353685507,1739989840099,-845.31,0.00011038,2]
[353685509,1739989840108,-546.44,0.00011038,2]
[353685511,1739989840119,-1354.02,0.00011038,2]
[353685513,1739989840129,-813.28,0.00011038,2]
[353685515,1739989840141,-500.0,0.00011038,2]
[353685517,1739989840150,-886.71,0.00011038,2]
[353685519,1739989840159,-500.0,0.00011038,2]
[353685521,1739989840169,-610.24,0.00011038,2]
[353685523,1739989840178,-500.0,0.00011038,2]
[353685525,1739989840187,-551.66,0.00011038,2]
[353685527,1739989840196,-928.84,0.00011038,2]
[353685529,1739989840205,-884.89,0.00011038,2]
[353685531,1739989840215,-961.75,0.00011038,2]
[353685533,1739989840225,-500.0,0.00011038,2]
[353685535,1739989840235,-860.96,0.00011038,2]
[353685537,1739989840244,-779.76,0.00011038,2]
[353685539,1739989840254,-500.0,0.00011038,2]
[353685541,1739989840263,-2512.42,0.00011038,2]
[353685543,1739989840274,-562.74310344,0.00011038,2]
[353685545,1739989840283,-840.63,0.00011038,2]
[353685547,1739989840293,-500.0,0.00011038,2]
[353685549,1739989840303,-500.0,0.00011038,2]
[353685551,1739989840313,-1131.52,0.00011038,2]
[353685553,1739989840322,-1017.33,0.00011038,2]
[353685555,1739989840331,-1001.54,0.00011038,2]
[353685557,1739989840340,-884.99,0.00011038,2]
[353685559,1739989840350,-860.73,0.00011038,2]
[353685561,1739989840361,-575.94,0.00011038,2]
[353685563,1739989840371,-642.95,0.00011038,2]
[353685565,1739989840380,-500.0,0.00011038,2]
[353685567,1739989840389,-500.0,0.00011038,2]
[353685569,1739989840398,-1425.25,0.00011038,2]
[353685571,1739989840407,-500.0,0.00011038,2]
[353685573,1739989840417,-754.19,0.00011038,2]
[353685575,1739989840427,-745.56,0.00011038,2]
[353685577,1739989840437,-816.4,0.00011038,2]
[353685579,1739989840446,-849.95,0.00011038,2]
[353685581,1739989840456,-500.0,0.00011038,2]
[353685583,1739989840465,-500.0,0.00011038,2]
[353685585,1739989840474,-989.05,0.00011038,2]
[353685587,1739989840483,-909.74,0.00011038,2]
[353685589,1739989840492,-500.0,0.00011038,2]
[353685591,1739989840501,-500.0,0.00011038,2]
[353685593,1739989840511,-1165.91,0.00011038,2]
[353685595,1739989840521,-647.24243988,0.00011038,2]
[353685597,1739989840531,-500.0,0.00011038,2]
[353685599,1739989840540,-500.0,0.00011038,2]
[353685601,1739989840550,-1069.75,0.00011038,2]
[353685603,1739989840559,-187.78900801,0.00011038,2]
[353685605,1739989840569,-500.0,0.00011039,2]
[353685607,1739989840578,-500.0,0.00011039,2]
[353685609,1739989840588,-500.0,0.00011039,2]
[353685611,1739989840598,-500.0,0.00011039,2]
[353685613,1739989840608,-500.0,0.00011039,2]
[353685615,1739989840620,-500.0,0.00011039,2]
[353685616,1739989840630,-500.0,0.00011039,2]
[353685617,1739989840639,-500.0,0.00011039,2]
[353685618,1739989840649,-748.58,0.00011039,2]
[353685619,1739989840658,-338.86607367,0.00011039,2]
[353685620,1739989840667,-500.0,0.00011039,7]
[353685621,1739989840677,-500.0,0.00011039,2]
[353685622,1739989840686,-231.73150028,0.00011039,2]
[353685623,1739989840695,-500.0,0.00011039,2]
[353685624,1739989840704,-500.0,0.00011039,2]
[353685625,1739989840714,-500.0,0.00011039,2]
[353685626,1739989840722,-500.0,0.00011039,2]
[353685628,1739989840732,-500.0,0.00011039,2]
[353685630,1739989840742,-500.0,0.00011039,2]
[353685632,1739989840751,-500.0,0.00011039,2]
[353685658,1739989840987,-375.80892468,0.00011039,2]
[353685660,1739989840999,-500.0,0.00011039,2]
[353685662,1739989841009,-500.0,0.00011039,2]
[353685664,1739989841018,-500.0,0.00011039,2]
[353685666,1739989841028,-500.0,0.00011039,2]
[353685668,1739989841037,-586.35,0.00011039,2]
[353685670,1739989841049,-500.0,0.00011039,2]
[353685672,1739989841060,-500.0,0.00011039,2]
[353685674,1739989841070,-500.0,0.00011039,2]
[353685676,1739989841079,-500.0,0.00011039,2]
[353685678,1739989841089,-500.0,0.00011039,2]
[353685680,1739989841098,-500.0,0.00011039,2]
[353685682,1739989841109,-808.03,0.00011039,2]
[353685684,1739989841119,-150.18534709,0.00011039,2]
[353685686,1739989841128,-500.0,0.00011039,2]
[353685688,1739989841137,-500.0,0.00011039,2]
[353685690,1739989841146,-500.0,0.00011039,2]
[353685692,1739989841156,-500.0,0.00011039,2]
[353685694,1739989841165,-500.0,0.00011039,2]
[353685696,1739989841174,-500.0,0.00011039,2]
[353685698,1739989841184,-500.0,0.00011039,2]
[353685700,1739989841193,-500.0,0.00011039,2]
[353685702,1739989841202,-500.0,0.00011039,2]
[353685704,1739989841210,-500.0,0.00011039,2]
[353685706,1739989841219,-500.0,0.00011039,2]
[353685708,1739989841229,-500.0,0.00011039,2]
[353685709,1739989841238,-500.0,0.00011039,2]
[353685711,1739989841247,-500.0,0.00011039,2]
[353685713,1739989841256,-516.8390812,0.00011039,2]
[353685715,1739989841265,-500.0,0.00011039,2]
[353685717,1739989841274,-500.0,0.00011039,2]
[353685719,1739989841283,-500.0,0.00011039,2]
[353685721,1739989841292,-500.0,0.00011039,2]
[353685723,1739989841302,-500.0,0.00011039,2]
[353685725,1739989841311,-500.0,0.00011039,2]
[353685727,1739989841320,-500.0,0.00011039,2]
[353685729,1739989841330,-263.30621072,0.00011039,2]
[353685731,1739989841340,-607.60606993,0.00011039,2]
[353685734,1739989841349,-500.0,0.00011039,2]
[353685736,1739989841359,-500.0,0.00011039,2]
[353685738,1739989841368,-500.0,0.00011039,2]
[353685739,1739989841377,-500.0,0.00011039,2]
[353685741,1739989841386,-500.0,0.00011039,2]
[353685744,1739989841396,-500.0,0.00011039,2]
[353685745,1739989841405,-500.0,0.00011039,2]
[353685747,1739989841414,-500.0,0.00011039,2]
[353685749,1739989841423,-499.85410215,0.00011039,2]
[353685751,1739989841432,-500.0,0.00011039,2]
[353685753,1739989841441,-500.0,0.00011039,2]
[353685755,1739989841450,-500.0,0.00011039,2]
[353685757,1739989841459,-500.0,0.00011039,2]
[353685759,1739989841468,-500.0,0.00011039,2]
[353685761,1739989841477,-500.0,0.00011039,2]
[353685763,1739989841486,-500.0,0.00011039,2]
[353685765,1739989841495,-500.0,0.00011039,2]
[353685767,1739989841504,-500.0,0.00011039,2]
[353685769,1739989841514,-500.0,0.00011039,2]
[353685771,1739989841523,-500.0,0.00011039,2]
[353685773,1739989841532,-500.0,0.00011039,2]
[353685775,1739989841541,-500.0,0.00011039,2]
[353685777,1739989841551,-747.19,0.00011039,2]
[353685779,1739989841560,-587.57,0.00011039,2]
[353685781,1739989841569,-500.0,0.00011039,2]
[353685783,1739989841579,-500.0,0.00011039,2]
[353685785,1739989841588,-500.0,0.00011039,2]
[353685787,1739989841598,-500.0,0.00011039,2]
[353685789,1739989841607,-500.0,0.00011039,2]
[353685791,1739989841617,-500.0,0.00011039,2]
[353685793,1739989841626,-500.0,0.00011039,2]
[353685795,1739989841636,-500.0,0.00011039,2]
[353685797,1739989841645,-500.0,0.00011039,2]
[353685799,1739989841654,-500.0,0.00011039,2]
[353685801,1739989841664,-500.0,0.00011039,2]
[353685803,1739989841673,-848.59,0.00011039,2]
[353685805,1739989841682,-500.0,0.00011039,2]
[353685807,1739989841693,-500.0,0.00011039,2]
[353685809,1739989841702,-500.0,0.00011039,2]
[353685811,1739989841712,-575.2004674,0.00011039,2]
[353685813,1739989841721,-500.0,0.00011039,2]
[353685815,1739989841730,-1147.35,0.00011039,2]
[353685817,1739989841739,-999.75,0.00011039,2]
[353685819,1739989841749,-1283.42,0.00011039,2]
[353685821,1739989841758,-500.0,0.00011039,2]
[353685823,1739989841767,-654.09,0.00011039,2]
[353685825,1739989841777,-374.33389084,0.00011039,2]
[353685827,1739989841787,-500.0,0.00011039,2]
[353685829,1739989841796,-666.2,0.00011039,2]
[353685831,1739989841806,-1344.91,0.00011039,2]
[353685833,1739989841815,-1367.57,0.00011039,2]
[353685835,1739989841825,-1209.75,0.00011039,2]
[353685837,1739989841834,-1670.27,0.00011039,2]
[353685839,1739989841843,-500.0,0.00011039,2]
[353685841,1739989841852,-1060.71,0.00011039,2]
[353685843,1739989841862,-500.0,0.00011039,2]
[353685845,1739989841871,-500.0,0.00011039,2]
[353685847,1739989841880,-901.43,0.00011039,2]
[353685849,1739989841889,-500.0,0.00011039,2]
[353685851,1739989841899,-500.0,0.00011039,2]
[353685853,1739989841909,-1001.6,0.00011039,2]
[353685855,1739989841918,-616.62,0.00011039,2]
[353685857,1739989841927,-500.0,0.00011039,2]
[353685859,1739989841937,-835.64,0.00011039,2]
[353685861,1739989841947,-1683.37,0.00011039,2]
[353685863,1739989841956,-500.0,0.00011039,2]
[353685865,1739989841965,-1077.86,0.00011039,2]
[353685867,1739989841975,-1173.44,0.00011039,2]
[353685869,1739989841984,-1666.57,0.00011039,2]
[353685871,1739989841994,-640.32,0.00011039,2]
[353685873,1739989842004,-500.0,0.00011039,2]
[353685875,1739989842013,-500.0,0.00011039,2]
[353685877,1739989842023,-500.0,0.00011039,2]
[353685879,1739989842032,-900.12,0.00011039,2]
[353685881,1739989842042,-500.0,0.00011039,2]
[353685883,1739989842052,-1171.29,0.00011039,2]
[353685885,1739989842065,-995.83,0.00011039,2]
[353685887,1739989842075,-500.0,0.00011039,2]
[353685889,1739989842084,-500.0,0.00011039,2]
[353685891,1739989842095,-500.0,0.00011039,2]
[353685893,1739989842104,-500.0,0.00011039,2]
[353685895,1739989842114,-500.0,0.00011039,2]
[353685897,1739989842124,-1130.78,0.00011039,2]
[353685899,1739989842136,-1120.93,0.00011039,2]
[353685901,1739989842146,-1021.62,0.00011039,2]
[353685903,1739989842156,-500.0,0.00011039,2]
[353685905,1739989842165,-163.5111088,0.00011099,2]
[353685907,1739989842175,-1700.44401189,0.00011099,2]
[353685909,1739989842185,-1700.44401187,0.00011099,2]
[353685911,1739989842194,-500.0,0.00011119,2]
[353685913,1739989842203,-500.0,0.00011119,2]
[353685915,1739989842212,-911.18,0.00011119,2]
[353685917,1739989842224,-500.0,0.00011119,2]
[353685919,1739989842233,-500.0,0.00011119,2]
[353685921,1739989842242,-500.0,0.00011119,2]
[353685923,1739989842252,-500.0,0.00011119,2]
[353685925,1739989842261,-500.0,0.00011119,2]
[353685927,1739989842270,-500.0,0.00011119,2]
[353685929,1739989842280,-500.0,0.00011119,2]
[353685931,1739989842290,-500.0,0.00011119,2]
[353685934,1739989842299,-222.83983979,0.00011119,2]
[353685937,1739989842309,-500.0,0.00011119,2]
[353685940,1739989842319,-500.0,0.00011119,2]
[353685943,1739989842328,-500.0,0.00011119,2]
[353685945,1739989842337,-500.0,0.00011119,2]
[353685948,1739989842347,-500.0,0.00011119,2]
[353685950,1739989842356,-500.0,0.00011119,2]
[353685952,1739989842366,-630.71,0.00011119,2]
[353685954,1739989842376,-500.0,0.00011119,2]
[353685956,1739989842385,-500.0,0.00011119,2]
[353685958,1739989842394,-687.83,0.00011119,2]
[353685960,1739989842403,-500.0,0.00011119,2]
[353685962,1739989842413,-500.0,0.00011119,2]
[353685964,1739989842423,-500.0,0.00011119,2]
[353685966,1739989842433,-621.99320723,0.00011119,2]
[353685968,1739989842443,-500.0,0.00011119,2]
[353685970,1739989842453,-500.0,0.00011119,2]
[353685972,1739989842463,-500.0,0.00011119,2]
[353685974,1739989842472,-500.0,0.00011119,2]
[353685976,1739989842481,-500.0,0.00011119,2]
[353685978,1739989842490,-500.0,0.00011119,2]
[353685980,1739989842499,-500.0,0.00011119,2]
[353685982,1739989842509,-500.0,0.00011119,2]
[353685984,1739989842518,-603.9,0.00011119,2]
[353685986,1739989842528,-500.0,0.00011119,2]
[353685988,1739989842537,-500.0,0.00011119,2]
[353685990,1739989842547,-500.0,0.00011119,2]
[353685992,1739989842556,-500.0,0.00011119,2]
[353685994,1739989842565,-500.0,0.00011119,2]
[353685996,1739989842574,-500.0,0.00011119,2]
[353685998,1739989842583,-500.0,0.00011119,2]
[353686000,1739989842593,-500.0,0.00011119,2]
[353686002,1739989842602,-500.0,0.00011119,2]
[353686004,1739989842611,-500.0,0.00011119,2]
[353686006,1739989842621,-500.0,0.00011119,2]
[353686008,1739989842630,-500.0,0.00011119,2]
[353686010,1739989842640,-500.0,0.00011119,2]
[353686012,1739989842650,-589.57,0.00011119,2]
[353686014,1739989842659,-500.0,0.00011119,2]
[353686016,1739989842669,-500.0,0.00011119,2]
[353686018,1739989842678,-500.0,0.00011119,2]
[353686020,1739989842687,-500.0,0.00011119,2]
[353686022,1739989842696,-500.0,0.00011119,2]
[353686024,1739989842706,-500.0,0.00011119,2]
[353686026,1739989842715,-500.0,0.00011119,2]
[353686028,1739989842724,-500.0,0.00011119,2]
[353686030,1739989842733,-500.0,0.00011119,2]
[353686032,1739989842743,-500.0,0.00011119,2]
[353686034,1739989842753,-332.93097159,0.00011119,2]
[353686036,1739989842763,-500.0,0.00011119,2]
[353686038,1739989842773,-500.0,0.00011119,2]
[353686040,1739989842783,-500.0,0.00011119,2]
[353686042,1739989842794,-500.0,0.00011119,2]
[353686044,1739989842803,-500.0,0.00011119,2]
[353686046,1739989842814,-500.0,0.00011119,2]
[353686048,1739989842824,-500.0,0.00011119,2]
[353686051,1739989842833,-500.0,0.00011119,2]
[353686054,1739989842843,-500.0,0.00011119,2]
[353686057,1739989842853,-500.0,0.00011119,2]
[353686060,1739989842863,-500.0,0.00011119,2]
[353686063,1739989842873,-500.0,0.00011119,2]
[353686066,1739989842883,-500.0,0.00011119,2]
[353686068,1739989842892,-500.0,0.00011119,2]
[353686070,1739989842902,-500.0,0.00011119,2]
[353686072,1739989842911,-500.0,0.00011119,2]
[353686074,1739989842920,-500.0,0.00011119,2]
[353686076,1739989842929,-500.0,0.00011119,2]
[353686078,1739989842938,-500.0,0.00011119,2]
[353686080,1739989842948,-517.30485329,0.00011119,2]
[353686082,1739989842957,-500.0,0.00011119,2]
[353686084,1739989842967,-500.0,0.00011119,2]
[353686086,1739989842976,-500.0,0.00011119,2]
[353686088,1739989842985,-552.76,0.00011119,2]
[353686090,1739989842995,-500.0,0.00011119,2]
[353686092,1739989843004,-500.0,0.00011119,2]
[353686094,1739989843014,-500.0,0.00011119,2]
[353686096,1739989843023,-500.0,0.00011119,2]
[353686098,1739989843033,-500.0,0.00011119,2]
[353686100,1739989843043,-500.0,0.00011119,2]
[353686102,1739989843054,-500.0,0.00011119,2]
[353686104,1739989843065,-500.0,0.00011119,2]
[353686106,1739989843074,-500.0,0.00011119,2]
[353686108,1739989843084,-500.0,0.00011119,2]
[353686110,1739989843095,-500.0,0.00011119,2]
[353686112,1739989843105,-500.0,0.00011119,2]
[353686114,1739989843114,-500.0,0.00011119,2]
[353686116,1739989843123,-500.0,0.00011119,2]
[353686117,1739989843134,-514.5738102,0.00011119,2]
[353686118,1739989843142,-500.0,0.00011119,2]
[353686119,1739989843151,-500.0,0.00011119,2]
[353686120,1739989843160,-500.0,0.00011119,2]
[353686121,1739989843169,-500.0,0.00011119,2]
[353686122,1739989843178,-500.0,0.00011119,2]
[353686123,1739989843186,-500.0,0.00011119,2]
[353686124,1739989843195,-500.0,0.00011119,2]
[353686125,1739989843205,-500.0,0.00011119,2]
[353686126,1739989843215,-500.0,0.00011119,2]
[353686127,1739989843224,-500.0,0.00011119,2]
[353686129,1739989843234,-500.0,0.00011119,2]
[353686131,1739989843243,-507.62,0.00011119,2]
[353686133,1739989843253,-500.0,0.00011119,2]
[353686135,1739989843262,-500.0,0.00011119,2]
[353686137,1739989843272,-500.0,0.00011119,2]
[353686139,1739989843281,-500.0,0.00011119,2]
[353686141,1739989843291,-500.0,0.00011119,2]
[353686143,1739989843300,-500.0,0.00011119,2]
[353686145,1739989843309,-500.0,0.00011119,2]
[353686147,1739989843319,-500.0,0.00011119,2]
[353686149,1739989843327,-500.0,0.00011119,2]
[353686151,1739989843337,-500.0,0.00011119,2]
[353686153,1739989843346,-500.0,0.00011119,2]
[353686155,1739989843355,-500.0,0.00011119,2]
[353686157,1739989843365,-164.12494597,0.00011119,2]
[353686159,1739989843375,-500.0,0.00011119,2]
[353686161,1739989843384,-500.0,0.00011119,2]
[353686163,1739989843393,-500.0,0.00011119,2]
[353686165,1739989843403,-500.0,0.00011119,2]
[353686167,1739989843412,-500.0,0.00011119,2]
[353686169,1739989843422,-500.0,0.00011119,2]
[353686171,1739989843431,-500.0,0.00011119,2]
[353686173,1739989843440,-500.0,0.00011119,2]
[353686175,1739989843450,-500.0,0.00011119,2]
[353686177,1739989843459,-500.0,0.00011119,2]
[353686179,1739989843470,-652.9,0.00011119,2]
[353686181,1739989843479,-500.0,0.00011119,2]